[Event "GER-ch Youth U18 2019"]
[Site "Willingen"]
[Date "2019.06.11"]
[Round "4.13"]
[White "Engel, Robert"]
[Black "Schnabel, Bennett"]
[Result "1-0"]
[ECO "B01"]
[WhiteElo "2067"]
[BlackElo "2125"]
[Annotator "NA"]
[PlyCount "81"]
[EventDate "2019.06.07"]
[EventType "swiss"]
[EventRounds "9"]
[EventCountry "GER"]
[SourceTitle "playchess.com"]
[Source "ChessBase"]
[SourceQuality "1"]
[TimeControl "40/5400+30:1800+30"]

1. e4 {[%emt 0:00:00]} d5 {[%emt 0:00:00]} 2. exd5 {[%emt 0:00:00]} Qxd5 {[%emt 0:00:00]} 3. Nf3 {[%emt 0:00:05]} Nf6 {[%emt 0:00:31]} 4. d4 Bg4 {[%emt 0:00:52]} 5. Be2 {[%emt 0:01:47]} Nc6 {[%emt 0:10:34]} 6. c4 {[%emt 0:07:25]} Qd6 7. d5 Bxf3 {[%emt 0:07:54]} 8. Bxf3 {[%emt 0:00:56]} Qe5+ {[%emt 0:05:55]} 9. Be3 {[%emt 0:09:02]} O-O-O 10. Qe2 Nd4 {[%emt 0:02:22]} 11. Bxd4 {[%emt 0:00:37]} Qxd4 {[%emt 0:00:05]} 12. O-O {[%emt 0:00:53]} g5 {[%emt 0:01:25]} 13. Rd1 {[%emt 0:00:47]} Qf4 {[%emt 0:02:45]} 14. g3 {[%emt 0:01:38]} Qf5 15. Nc3 g4 {[%emt 0:02:23]} 16. Bg2 {[%emt 0:01:33]} Nd7 17. Qe3 Ne5 {[%emt 0:09:39]} 18. Qxa7 {[%emt 0:19:28]} Nf3+ {[%emt 0:01:15]} 19. Bxf3 {[%emt 0:01:46]} gxf3 {[%emt 0:00:09]} 20. Qe3 {[%emt 0:02:44]} Rd6 {[%emt 0:02:19]} 21. Rd4 {[%emt 0:06:16]} e5 {[%emt 0:08:21]} 22. Qe4 Qd7 {[%emt 0:15:11]} 23. Rd3 {[%emt 0:04:28]} Rh6 {[%emt 0:01:12]} 24. Rxf3 {[%emt 0:01:18]} Rh5 25. Rd3 {[%emt 0:06:57]} Bc5 {[%emt 0:07:35]} 26. Rb1 {[%emt 0:11:35]} Qh3 {[%emt 0:03:54]} 27. Qg2 {[%emt 0:00:25]} Qg4 28. Ne4 {[%emt 0:02:01]} Be7 {[%emt 0:05:42]} 29. d6 cxd6 {[%emt 0:00:36]} 30. Rb3 {[%emt 0:06:30]} Qh3 {[%emt 0:05:08]} 31. Qxh3+ {[%emt 0:02:20]} Rxh3 {[%emt 0:00:01]} 32. Rd1 {[%emt 0:00:26]} Rd8 {[%emt 0:04:50]} 33. Rf3 {[%emt 0:00:15]} f6 {[%emt 0:01:23]} 34. Nc3 {[%emt 0:05:56]} Kd7 {[%emt 0:00:50]} 35. Nd5 {[%emt 0:00:17]} Rh6 {[%emt 0:00:21]} 36. Rb3 {[%emt 0:01:25]} Rb8 {[%emt 0:00:58]} 37. Ne3 {[%emt 0:01:32]} Rg6 {[%emt 0:01:52]} 38. Rb6 {[%emt 0:00:24]} f5 {[%emt 0:01:33]} 39. Nxf5 {[%emt 0:00:25]} Rf6 {[%emt 0:00:37]} 40. Nxd6 {[%emt 0:02:04]} Kc7 {[%emt 0:00:18]} 41. c5 {[%emt 0:30:10] normal} 1-0

[Event "GER-ch Youth U18 2019"]
[Site "Willingen"]
[Date "2019.06.11"]
[Round "4.14"]
[White "Knoedler, Marcel"]
[Black "Sureshkumar, Atchuthan"]
[Result "1/2-1/2"]
[ECO "D00"]
[WhiteElo "1633"]
[BlackElo "1502"]
[Annotator "NA"]
[PlyCount "55"]
[EventDate "2019.06.07"]
[EventType "swiss"]
[EventRounds "9"]
[EventCountry "GER"]
[SourceTitle "playchess.com"]
[Source "ChessBase"]
[SourceQuality "1"]
[TimeControl "40/5400+30:1800+30"]

1. d4 {[%emt 0:00:00]} d5 {[%emt 0:00:00]} 2. Bf4 {[%emt 0:02:05]} Nc6 {[%emt 0:03:31]} 3. e3 {[%emt 0:01:04]} a6 {[%emt 0:03:08]} 4. Nd2 {[%emt 0:03:28]} Nf6 {[%emt 0:00:33]} 5. Ngf3 {[%emt 0:00:52]} Bg4 {[%emt 0:00:08]} 6. h3 {[%emt 0:00:40]} Bh5 {[%emt 0:01:52]} 7. Be2 {[%emt 0:01:44]} e6 {[%emt 0:02:35]} 8. Ne5 {[%emt 0:00:12]} Bxe2 {[%emt 0:06:59]} 9. Qxe2 {[%emt 0:00:16]} Nxe5 {[%emt 0:00:18]} 10. Bxe5 {[%emt 0:01:38]} Bd6 {[%emt 0:01:35]} 11. f4 {[%emt 0:00:57]} O-O {[%emt 0:00:16]} 12. O-O {[%emt 0:00:48]} Nd7 {[%emt 0:00:02]} 13. Bxd6 {[%emt 0:02:51]} cxd6 {[%emt 0:02:54]} 14. c4 {[%emt 0:01:59]} Nb6 {[%emt 0:01:07]} 15. Rfc1 {[%emt 0:00:58]} Rc8 {[%emt 0:00:40]} 16. Rc2 {[%emt 0:00:17]} dxc4 {[%emt 0:01:39]} 17. Nxc4 {[%emt 0:00:15]} Rxc4 {[%emt 0:00:02]} 18. Rxc4 {[%emt 0:00:09]} Nxc4 {[%emt 0:05:09]} 19. Qxc4 {[%emt 0:00:30]} Qc8 {[%emt 0:00:10]} 20. Rc1 {[%emt 0:00:05]} Qxc4 {[%emt 0:01:53]} 21. Rxc4 {[%emt 0:01:05]} f5 {[%emt 0:00:55]} 22. Kf2 {[%emt 0:00:23]} g6 {[%emt 0:00:09]} 23. Ke2 {[%emt 0:01:32]} Kg7 {[%emt 0:02:25]} 24. Kd3 {[%emt 0:01:26]} Kf6 {[%emt 0:12:08]} 25. a4 {[%emt 0:02:10]} g5 {[%emt 0:00:53]} 26. fxg5+ Kxg5 27. Rc7 {[%emt 0:01:29] normal} Rb8 {[%emt 0:00:57]} 28. Rxh7 {normal} 1/2-1/2

[Event "GER-ch Youth U18 2019"]
[Site "Willingen"]
[Date "2019.06.12"]
[Round "5.1"]
[White "Engel, Luis"]
[Black "Buckels, Valentin"]
[Result "1/2-1/2"]
[ECO "B12"]
[WhiteElo "2512"]
[BlackElo "2443"]
[Annotator "ChessBase"]
[PlyCount "141"]
[EventDate "2019.06.07"]
[EventType "swiss"]
[EventRounds "9"]
[EventCountry "GER"]
[SourceTitle "playchess.com"]
[Source "ChessBase"]
[SourceQuality "1"]
[TimeControl "40/5400+30:1800+30"]

1. e4 {[%emt 0:00:00]} c6 {[%emt 0:00:00]} 2. d4 {[%emt 0:00:00]} d5 {[%emt 0:00:00]} 3. e5 {[%emt 0:02:17]} Bf5 {[%emt 0:00:05]} 4. Nf3 {[%emt 0:00:06]} e6 {[%emt 0:00:11]} 5. Be2 {[%emt 0:00:04]} Nd7 {[%emt 0:00:32]} 6. O-O {[%emt 0:00:08]} Bg6 {[%emt 0:00:17]} 7. Nbd2 {[%emt 0:00:41]} Nh6 {[%emt 0:00:32]} 8. Nb3 {[%emt 0:01:39]} Be7 {[%emt 0:00:19]} 9. a4 {[%emt 0:02:18]} a5 {[%emt 0:00:31]} 10. Bd2 {[%emt 0:04:44]} O-O {[%emt 0:02:03]} 11. Rc1 {[%emt 0:04:08]} f6 {[%emt 0:15:18]} 12. c4 {[%emt 0:07:35]} Be4 {[%emt 0:05:52]} 13. cxd5 {[%emt 0:03:58]} Bxd5 {[%emt 0:02:52]} 14. Bxh6 {[%emt 0:02:24]} gxh6 {[%emt 0:00:08]} 15. exf6 {[%emt 0:02:00]} Bxf6 {[%emt 0:01:17]} 16. Re1 {[%emt 0:03:26]} e5 {[%emt 0:13:12]} 17. Bc4 {[%emt 0:02:57]} Bxc4 {[%emt 0:12:05]} 18. Rxc4 {[%emt 0:00:06]} Nb6 {[%emt 0:01:23]} 19. Rc1 {[%emt 0:02:56]} exd4 {[%emt 0:01:16]} 20. Nbxd4 {[%emt 0:03:29]} Bxd4 {[%emt 0:03:11]} 21. Nxd4 {[%emt 0:00:50]} Qf6 {[%emt 0:00:38]} 22. Rc2 {[%emt 0:11:18]} Rad8 {[%emt 0:05:33]} 23. Qg4+ {[%emt 0:01:06]} Kh8 {[%emt 0:00:23]} 24. Ne6 {[%emt 0:02:24]} Rde8 {[%emt 0:03:16]} 25. Rce2 {[%emt 0:03:15]} Rg8 {[%emt 0:01:18]} 26. Qe4 {[%emt 0:05:15]} Nd5 {[%emt 0:03:03]} 27. g3 {[%emt 0:01:44]} Re7 {[%emt 0:05:23]} 28. Qe5 {[%emt 0:04:40]} Qxe5 {[%emt 0:09:53]} 29. Rxe5 {[%emt 0:00:06]} Nb6 {[%emt 0:04:30]} 30. Nc5 {[%emt 0:08:14]} Rxe5 {[%emt 0:00:57]} 31. Rxe5 {[%emt 0:00:06]} Nc4 {[%emt 0:01:17]} 32. Re2 {[%emt 0:01:53]} b6 {[%emt 0:01:17]} 33. Nd7 {[%emt 0:00:34]} Rd8 {[%emt 0:00:36]} 34. Re7 {[%emt 0:00:56]} Kg8 {[%emt 0:03:13]} 35. b3 {[%emt 0:02:00]} Nd6 {[%emt 0:01:53]} 36. Nxb6 {[%emt 0:01:57]} Rb8 {[%emt 0:00:30]} 37. Re6 {[%emt 0:01:35]} Rxb6 {[%emt 0:02:10]} 38. Rxd6 {[%emt 0:00:05]} Rxb3 {[%emt 0:00:51]} 39. Rxc6 {[%emt 0:00:25]} Rb4 {[%emt 0:00:14]} 40. Rxh6 {[%emt 0:00:07]} Rxa4 {[%emt 0:00:06]} 41. Ra6 {[%emt 0:30:07]} Kg7 {[%emt 0:31:07]} 42. Kg2 {[%emt 0:00:25]} h5 {[%emt 0:00:00]} 43. f3 {[%emt 0:00:00]} Ra2+ {[%emt 0:00:00]} 44. Kh3 {[%emt 0:00:00]} a4 {[%emt 0:00:00]} 45. g4 {[%emt 0:00:00]} Ra3 {[%emt 0:00:00]} 46. Kg2 {[%emt 0:00:00]} hxg4 {[%emt 0:00:00]} 47. fxg4 {[%emt 0:00:00]} Kh7 {[%emt 0:00:00]} 48. h4 {[%emt 0:00:00]} Kg7 {[%emt 0:00:00]} 49. h5 {[%emt 0:00:00]} Kf7 {[%emt 0:02:13]} 50. g5 {[%emt 0:00:00]} Ra2+ {[%emt 0:00:42]} 51. Kg3 {[%emt 0:00:00]} Ra1 {[%emt 0:00:46]} 52. g6+ {[%emt 0:00:00]} Kg7 {[%emt 0:00:46]} 53. Ra7+ {[%emt 0:00:00]} Kf6 {[%emt 0:00:25]} 54. Kg2 {[%emt 0:00:00]} Rb1 {[%emt 0:02:23]} 55. Rxa4 {[%emt 0:00:00]} Rb7 {[%emt 0:00:22]} 56. Kg3 {[%emt 0:00:00]} Kg5 {[%emt 0:00:28]} 57. Ra5+ {[%emt 0:00:00]} Kh6 {[%emt 0:00:01]} 58. Rf5 {[%emt 0:00:00]} Rb4 {[%emt 0:00:55]} 59. Kf3 {[%emt 0:02:11]} Rb7 {[%emt 0:00:30]} 60. Kg4 {[%emt 0:00:29]} Rb4+ {[%emt 0:00:19]} 61. Kf3 {[%emt 0:00:38]} Rb7 {[%emt 0:00:32]} 62. Re5 {[%emt 0:00:51]} Rb4 {[%emt 0:00:43]} 63. Re4 {[%emt 0:01:16]} Rb5 {[%emt 0:00:27]} 64. Rg4 {[%emt 0:00:58]} Rb7 {[%emt 0:00:30]} 65. Rg1 {[%emt 0:03:07]} Ra7 {[%emt 0:00:23]} 66. Rg4 {[%emt 0:01:52]} Rb7 {[%emt 0:00:07]} 67. Kg3 {[%emt 0:00:20]} Rb3+ {[%emt 0:00:37]} 68. Kh4 {[%emt 0:00:21]} Rb7 {[%emt 0:00:03]} 69. Rf4 {[%emt 0:01:41]} Rb5 {[%emt 0:00:17]} 70. Kg3 {[%emt 0:00:47]} Kxh5 {[%emt 0:00:55]} 71. g7 {[%emt 0:00:25] normal} 1/2-1/2

[Event "GER-ch Youth U18 2019"]
[Site "Willingen"]
[Date "2019.06.12"]
[Round "5.2"]
[White "Parvanyan, Ashot"]
[Black "Kuznecovs, Nikita"]
[Result "1-0"]
[ECO "C15"]
[WhiteElo "2421"]
[BlackElo "2317"]
[Annotator "NA"]
[PlyCount "87"]
[EventDate "2019.06.07"]
[EventType "swiss"]
[EventRounds "9"]
[EventCountry "GER"]
[SourceTitle "playchess.com"]
[Source "ChessBase"]
[SourceQuality "1"]
[TimeControl "40/5400+30:1800+30"]

1. e4 {[%emt 0:00:00]} e6 {[%emt 0:00:00]} 2. d4 {[%emt 0:00:00]} d5 {[%emt 0:00:00]} 3. Nc3 {[%emt 0:00:07]} Bb4 {[%emt 0:00:00]} 4. a3 {[%emt 0:00:14]} Bxc3+ {[%emt 0:00:00]} 5. bxc3 {[%emt 0:00:04]} dxe4 {[%emt 0:00:02]} 6. Qg4 {[%emt 0:00:04]} Nf6 {[%emt 0:00:07]} 7. Qxg7 {[%emt 0:00:06]} Rg8 {[%emt 0:00:06]} 8. Qh6 {[%emt 0:00:06]} Rg6 {[%emt 0:00:07]} 9. Qd2 {[%emt 0:00:45]} Nbd7 {[%emt 0:00:26]} 10. Ne2 {[%emt 0:04:53]} b6 {[%emt 0:01:52]} 11. c4 {[%emt 0:11:31]} e5 {[%emt 0:17:15]} 12. Bb2 {[%emt 0:08:36]} exd4 {[%emt 0:25:21]} 13. Nxd4 {[%emt 0:00:38]} Qe7 {[%emt 0:00:39]} 14. O-O-O {[%emt 0:07:26]} Bb7 {[%emt 0:01:56]} 15. Nf5 {[%emt 0:03:53]} Qc5 {[%emt 0:02:29]} 16. Ne3 {[%emt 0:00:18]} O-O-O {[%emt 0:08:32]} 17. Be2 {[%emt 0:02:57]} Bc6 {[%emt 0:05:54]} 18. Qc3 {[%emt 0:08:54]} Re8 {[%emt 0:00:26]} 19. Rd2 {[%emt 0:02:45]} Ne5 {[%emt 0:01:05]} 20. h3 {[%emt 0:02:21]} Rg5 {[%emt 0:06:18]} 21. Rhd1 {[%emt 0:01:51]} Nfd7 {[%emt 0:03:28]} 22. Bf1 {[%emt 0:06:39]} Qf8 {[%emt 0:00:55]} 23. Nd5 {[%emt 0:01:56]} f6 {[%emt 0:06:57]} 24. Qe3 {[%emt 0:04:57]} Nc5 {[%emt 0:06:51]} 25. Qf4 {[%emt 0:15:51]} Rg6 {[%emt 0:00:16]} 26. Re1 {[%emt 0:01:11]} Ne6 {[%emt 0:04:19]} 27. Qf5 {[%emt 0:11:35]} Bxd5 {[%emt 0:00:56]} 28. cxd5 {[%emt 0:02:04]} Rg5 {[%emt 0:00:05]} 29. Qxe6+ {[%emt 0:02:15]} Rxe6 {[%emt 0:00:10]} 30. dxe6 {[%emt 0:00:05]} Qe7 {[%emt 0:01:49]} 31. Ba6+ {[%emt 0:00:48]} Kb8 {[%emt 0:00:01]} 32. Red1 {[%emt 0:00:30]} Rg8 {[%emt 0:00:29]} 33. Rd4 {[%emt 0:00:38]} f5 {[%emt 0:02:24]} 34. Rd5 {[%emt 0:00:29]} Nc6 {[%emt 0:00:28]} 35. Bc4 {[%emt 0:00:26]} Qg5+ {[%emt 0:02:25]} 36. Kb1 {[%emt 0:00:04]} Kb7 {[%emt 0:00:36]} 37. g4 {[%emt 0:00:58]} Rf8 {[%emt 0:01:26]} 38. gxf5 {[%emt 0:00:31]} Rxf5 {[%emt 0:00:23]} 39. Rxf5 {[%emt 0:00:31]} Qxf5 {[%emt 0:00:02]} 40. Bd5 {[%emt 0:00:28]} Qh5 {[%emt 0:02:47]} 41. Rd4 {[%emt 0:06:39]} e3 {[%emt 0:13:21]} 42. fxe3 {[%emt 0:01:06]} Qg5 {[%emt 0:00:19]} 43. h4 {[%emt 0:01:09]} Qxe3 {[%emt 0:01:20]} 44. Rc4 {[%emt 0:01:00] normal} 1-0

[Event "GER-ch Youth U18 2019"]
[Site "Willingen"]
[Date "2019.06.12"]
[Round "5.3"]
[White "Muckle, Julius"]
[Black "Roseneck, Jonas"]
[Result "1/2-1/2"]
[ECO "D80"]
[WhiteElo "2370"]
[BlackElo "2403"]
[Annotator "NA"]
[PlyCount "133"]
[EventDate "2019.06.07"]
[EventType "swiss"]
[EventRounds "9"]
[EventCountry "GER"]
[SourceTitle "playchess.com"]
[Source "ChessBase"]
[SourceQuality "1"]
[TimeControl "40/5400+30:1800+30"]

1. d4 {[%emt 0:00:00]} Nf6 {[%emt 0:00:00]} 2. c4 {[%emt 0:00:00]} g6 {[%emt 0:00:00]} 3. Nc3 {[%emt 0:00:00]} d5 {[%emt 0:00:00]} 4. Bg5 {[%emt 0:00:00]} Ne4 {[%emt 0:00:00]} 5. Bh4 {[%emt 0:00:00]} Nxc3 {[%emt 0:00:20]} 6. bxc3 {[%emt 0:00:00]} dxc4 {[%emt 0:00:07]} 7. e3 {[%emt 0:00:01]} Be6 {[%emt 0:00:11]} 8. Rb1 {[%emt 0:00:31]} Nd7 {[%emt 0:00:20]} 9. Nf3 {[%emt 0:03:20]} Nb6 {[%emt 0:01:19]} 10. Be2 {[%emt 0:03:58]} Bg7 {[%emt 0:00:11]} 11. O-O {[%emt 0:00:10]} O-O {[%emt 0:00:21]} 12. Qc2 {[%emt 0:17:02]} Qe8 {[%emt 0:18:05]} 13. Nd2 {[%emt 0:04:41]} Rc8 {[%emt 0:10:21]} 14. Bf3 {[%emt 0:09:45]} c5 {[%emt 0:05:58]} 15. Bxb7 {[%emt 0:00:53]} Rc7 {[%emt 0:09:32]} 16. Bf3 {[%emt 0:06:46]} cxd4 {[%emt 0:07:11]} 17. exd4 {[%emt 0:00:34]} Qa4 {[%emt 0:05:03]} 18. Qb2 {[%emt 0:17:08]} Bf5 {[%emt 0:05:03]} 19. Ne4 {[%emt 0:03:33]} Qa5 {[%emt 0:00:30]} 20. Bg3 {[%emt 0:05:38]} Rcc8 {[%emt 0:01:58]} 21. Rfc1 {[%emt 0:15:52]} Bxe4 {[%emt 0:05:28]} 22. Bxe4 {[%emt 0:00:03]} f5 {[%emt 0:00:09]} 23. Bb7 {[%emt 0:00:34]} f4 {[%emt 0:00:10]} 24. Bxc8 {[%emt 0:00:35]} Nxc8 {[%emt 0:00:07]} 25. Qe2 {[%emt 0:01:40]} fxg3 {[%emt 0:00:53]} 26. Qxc4+ {[%emt 0:00:05]} Kh8 {[%emt 0:00:11]} 27. hxg3 {[%emt 0:01:07]} Nd6 {[%emt 0:01:05]} 28. Qe6 {[%emt 0:02:52]} Qc7 {[%emt 0:02:42]} 29. g4 {[%emt 0:03:56]} Nf7 {[%emt 0:02:37]} 30. Qd5 {[%emt 0:00:49]} Qf4 {[%emt 0:02:13]} 31. Qf3 {[%emt 0:02:03]} Qg5 {[%emt 0:10:40]} 32. Re1 {[%emt 0:00:16]} e5 {[%emt 0:03:06]} 33. d5 {[%emt 0:00:33]} Nh6 {[%emt 0:00:18]} 34. Qe3 {[%emt 0:00:49]} Qxg4 {[%emt 0:00:09]} 35. Qxa7 {[%emt 0:00:35]} Nf5 {[%emt 0:01:34]} 36. Rb4 {[%emt 0:01:31]} Qg5 {[%emt 0:00:45]} 37. Qa4 {[%emt 0:00:27]} Qd2 {[%emt 0:01:44]} 38. Qd1 {[%emt 0:00:10]} Qxc3 {[%emt 0:00:16]} 39. Rb7 {[%emt 0:00:56]} Nd4 {[%emt 0:01:11]} 40. Re3 {[%emt 0:00:30]} Qa5 {[%emt 0:03:02]} 41. Qb1 {[%emt 0:16:21]} Qxd5 {[%emt 0:01:34]} 42. Rb8 {[%emt 0:01:52]} Nc6 {[%emt 0:11:39]} 43. Rxf8+ {[%emt 0:00:32]} Bxf8 {[%emt 0:00:01]} 44. Qe4 {[%emt 0:00:58]} Qe6 {[%emt 0:06:16]} 45. Rc3 {[%emt 0:01:04]} Nd4 {[%emt 0:00:10]} 46. Re3 {[%emt 0:00:12]} Nc6 {[%emt 0:02:50]} 47. Rc3 {[%emt 0:00:11]} Nb4 {[%emt 0:03:18]} 48. a4 {[%emt 0:04:49]} Nd5 {[%emt 0:00:08]} 49. Qc4 {[%emt 0:01:52]} Kg7 {[%emt 0:05:19]} 50. Rd3 {[%emt 0:00:26]} Nf4 {[%emt 0:00:58]} 51. Qxe6 {[%emt 0:00:05]} Nxe6 {[%emt 0:00:02]} 52. Rd7+ {[%emt 0:00:10]} Kf6 {[%emt 0:00:46]} 53. a5 {[%emt 0:00:56]} Nc5 {[%emt 0:00:44]} 54. Rc7 {[%emt 0:02:26]} h5 {[%emt 0:01:59]} 55. a6 {[%emt 0:01:08]} Nxa6 {[%emt 0:00:02]} 56. Rc6+ {[%emt 0:00:03]} Kf5 {[%emt 0:00:03]} 57. Rxa6 {[%emt 0:00:04]} Bc5 {[%emt 0:00:11]} 58. Kf1 {[%emt 0:00:11]} Bd4 {[%emt 0:02:54]} 59. g3 {[%emt 0:01:22]} Bc5 {[%emt 0:01:23]} 60. Ke2 {[%emt 0:00:43]} Bd4 {[%emt 0:00:04]} 61. Rc6 {[%emt 0:00:54]} Ba7 {[%emt 0:01:58]} 62. f3 {[%emt 0:00:34]} Bd4 {[%emt 0:00:07]} 63. Ra6 {[%emt 0:00:10]} Bc5 {[%emt 0:00:21]} 64. Kf1 {[%emt 0:00:28]} Be3 {[%emt 0:00:33]} 65. Kg2 {[%emt 0:00:10]} Bd4 {[%emt 0:00:53]} 66. Kh3 {[%emt 0:00:13]} g5 {[%emt 0:00:36]} 67. Rh6 {[%emt 0:01:24] normal} 1/2-1/2

[Event "GER-ch Youth U18 2019"]
[Site "Willingen"]
[Date "2019.06.12"]
[Round "5.4"]
[White "Faerber, David"]
[Black "Riess, Alexander"]
[Result "0-1"]
[ECO "C77"]
[WhiteElo "2293"]
[BlackElo "2305"]
[Annotator "NA"]
[PlyCount "98"]
[EventDate "2019.06.07"]
[EventType "swiss"]
[EventRounds "9"]
[EventCountry "GER"]
[SourceTitle "playchess.com"]
[Source "ChessBase"]
[SourceQuality "1"]
[TimeControl "40/5400+30:1800+30"]

1. e4 {[%emt 0:00:05]} e5 {[%emt 0:00:00]} 2. Nf3 {[%emt 0:00:27]} Nc6 {[%emt 0:00:00]} 3. Bb5 {[%emt 0:00:53]} a6 {[%emt 0:00:00]} 4. Ba4 {[%emt 0:00:21]} Nf6 {[%emt 0:00:10]} 5. d3 {[%emt 0:00:19]} d6 {[%emt 0:00:41]} 6. c3 {[%emt 0:02:02]} g6 {[%emt 0:00:38]} 7. O-O {[%emt 0:03:13]} Bg7 {[%emt 0:00:35]} 8. Re1 {[%emt 0:00:27]} O-O {[%emt 0:01:16]} 9. Nbd2 {[%emt 0:00:47]} Nh5 {[%emt 0:05:08]} 10. Bxc6 {[%emt 0:25:49]} bxc6 {[%emt 0:00:09]} 11. d4 {[%emt 0:00:09]} exd4 {[%emt 0:19:01]} 12. cxd4 {[%emt 0:01:21]} f5 {[%emt 0:02:40]} 13. e5 {[%emt 0:06:23]} Be6 {[%emt 0:18:16]} 14. b3 {[%emt 0:12:47]} dxe5 {[%emt 0:12:08]} 15. Ba3 {[%emt 0:03:41]} Re8 {[%emt 0:05:46]} 16. dxe5 {[%emt 0:07:21]} Nf4 {[%emt 0:00:55]} 17. Qc2 {[%emt 0:04:58]} Bd5 {[%emt 0:11:21]} 18. Rad1 {[%emt 0:03:37]} a5 {[%emt 0:01:26]} 19. Bc5 {[%emt 0:05:51]} h6 {[%emt 0:01:38]} 20. Bd4 {[%emt 0:04:02]} Qe7 {[%emt 0:01:31]} 21. Re3 {[%emt 0:02:44]} Qf7 {[%emt 0:01:14]} 22. Rde1 {[%emt 0:03:11]} Ne6 {[%emt 0:02:00]} 23. Bb2 {[%emt 0:00:59]} Bf8 {[%emt 0:03:24]} 24. Rc1 {[%emt 0:06:22]} Bc5 {[%emt 0:00:37]} 25. Ree1 {[%emt 0:00:11]} Bb6 {[%emt 0:00:21]} 26. Qc3 {[%emt 0:00:28]} a4 {[%emt 0:01:32]} 27. Nc4 {[%emt 0:01:24]} c5 {[%emt 0:03:12]} 28. Rcd1 {[%emt 0:01:27]} Red8 {[%emt 0:01:18]} 29. Bc1 {[%emt 0:02:06]} Kh7 {[%emt 0:00:17]} 30. Qe3 {[%emt 0:00:50]} g5 {[%emt 0:00:35]} 31. h4 {[%emt 0:00:26]} f4 {[%emt 0:00:40]} 32. Qd3+ {[%emt 0:00:21]} Qg6 {[%emt 0:00:47]} 33. hxg5 {[%emt 0:00:41]} hxg5 {[%emt 0:00:17]} 34. Qxg6+ {[%emt 0:00:37]} Kxg6 {[%emt 0:00:08]} 35. Bb2 {[%emt 0:00:09]} g4 {[%emt 0:04:12]} 36. Nfd2 {[%emt 0:00:30]} Kf5 {[%emt 0:00:37]} 37. Nf1 {[%emt 0:00:46]} Bxc4 {[%emt 0:02:11]} 38. bxc4 {[%emt 0:00:02]} Rxd1 {[%emt 0:01:05]} 39. Rxd1 {[%emt 0:00:02]} Nd4 {[%emt 0:00:16]} 40. Nd2 {[%emt 0:01:32]} Re8 {[%emt 0:01:24]} 41. Nb1 {[%emt 0:14:16]} Rxe5 {[%emt 0:04:34]} 42. Kf1 {[%emt 0:00:33]} Ba5 {[%emt 0:02:56]} 43. Bc3 {[%emt 0:01:18]} Bb6 {[%emt 0:01:17]} 44. Re1 {[%emt 0:04:44]} Rxe1+ {[%emt 0:03:34]} 45. Kxe1 {[%emt 0:00:14]} Ke4 {[%emt 0:03:58]} 46. Kd2 {[%emt 0:00:16]} f3 {[%emt 0:02:14]} 47. gxf3+ {[%emt 0:02:54]} gxf3 {[%emt 0:02:35]} 48. Na3 {[%emt 0:04:11]} c6 {[%emt 0:00:57]} 49. Nb1 {[%emt 0:02:08]} Bd8 {[%emt 0:01:03] normal} 0-1

[Event "GER-ch Youth U18 2019"]
[Site "Willingen"]
[Date "2019.06.12"]
[Round "5.5"]
[White "Schmider, Niklas"]
[Black "Maetzkow, Maximilian Paul"]
[Result "1-0"]
[ECO "C11"]
[WhiteElo "2300"]
[BlackElo "2338"]
[Annotator "NA"]
[PlyCount "125"]
[EventDate "2019.06.07"]
[EventType "swiss"]
[EventRounds "9"]
[EventCountry "GER"]
[SourceTitle "playchess.com"]
[Source "ChessBase"]
[SourceQuality "1"]
[TimeControl "40/5400+30:1800+30"]

1. e4 {[%emt 0:00:00]} e6 {[%emt 0:00:00]} 2. d4 {[%emt 0:00:00]} d5 {[%emt 0:00:00]} 3. Nc3 {[%emt 0:00:00]} Nf6 {[%emt 0:00:00]} 4. e5 {[%emt 0:00:00]} Nfd7 {[%emt 0:00:00]} 5. f4 {[%emt 0:00:00]} c5 {[%emt 0:00:01]} 6. Nf3 {[%emt 0:00:04]} Nc6 {[%emt 0:00:13]} 7. Be3 {[%emt 0:00:07]} Be7 {[%emt 0:00:07]} 8. Qd2 {[%emt 0:00:05]} O-O {[%emt 0:00:10]} 9. dxc5 {[%emt 0:00:13]} Nxc5 {[%emt 0:00:12]} 10. O-O-O {[%emt 0:00:32]} b6 {[%emt 0:00:21]} 11. Kb1 {[%emt 0:01:30]} a6 {[%emt 0:00:54]} 12. h4 {[%emt 0:06:38]} Qc7 {[%emt 0:07:23]} 13. Qf2 {[%emt 0:07:18]} Bb7 {[%emt 0:21:49]} 14. Bd3 {[%emt 0:10:53]} Rac8 {[%emt 0:15:07]} 15. Ne2 {[%emt 0:14:24]} f6 {[%emt 0:23:03]} 16. exf6 {[%emt 0:09:35]} Bxf6 {[%emt 0:01:17]} 17. Bxc5 {[%emt 0:02:56]} bxc5 {[%emt 0:00:03]} 18. Qxc5 {[%emt 0:00:33]} Qd7 {[%emt 0:03:20]} 19. Qe3 {[%emt 0:04:34]} Rfe8 {[%emt 0:07:24]} 20. Ne5 {[%emt 0:05:26]} Bxe5 {[%emt 0:01:41]} 21. fxe5 {[%emt 0:00:11]} Qc7 {[%emt 0:00:05]} 22. h5 {[%emt 0:03:42]} Qxe5 {[%emt 0:03:29]} 23. Qd2 {[%emt 0:00:54]} Rf8 {[%emt 0:04:19]} 24. h6 {[%emt 0:01:03]} g6 {[%emt 0:00:08]} 25. g3 {[%emt 0:09:57]} Rce8 {[%emt 0:01:35]} 26. Nf4 {[%emt 0:00:30]} Qg5 {[%emt 0:01:26]} 27. Rhe1 {[%emt 0:03:30]} Qxh6 {[%emt 0:01:21]} 28. Qc3 {[%emt 0:01:10]} Nd8 {[%emt 0:03:16]} 29. Qb3 {[%emt 0:01:30]} Qg7 {[%emt 0:00:05]} 30. Qb6 {[%emt 0:02:46]} e5 {[%emt 0:00:23]} 31. Nh3 {[%emt 0:02:25]} e4 {[%emt 0:00:22]} 32. Be2 {[%emt 0:02:16]} Qf6 {[%emt 0:00:37]} 33. Qb3 {[%emt 0:00:21]} Ne6 {[%emt 0:00:52]} 34. Bg4 {[%emt 0:01:07]} Rb8 {[%emt 0:01:02]} 35. Bxe6+ {[%emt 0:03:17]} Qxe6 {[%emt 0:00:01]} 36. Ng5 {[%emt 0:01:04]} Qe5 {[%emt 0:01:38]} 37. Nxe4 {[%emt 0:00:53]} Rfe8 {[%emt 0:00:10]} 38. Nf6+ {[%emt 0:00:50]} Qxf6 {[%emt 0:00:14]} 39. Rxe8+ {[%emt 0:00:15]} Rxe8 {[%emt 0:00:00]} 40. Qxb7 {[%emt 0:00:28]} Qf3 {[%emt 0:00:01]} 41. Rc1 {[%emt 0:31:39]} Qxg3 {[%emt 0:22:32]} 42. Qxd5+ {[%emt 0:00:00]} Kh8 {[%emt 0:00:06]} 43. c4 {[%emt 0:00:00]} Qf4 {[%emt 0:04:43]} 44. c5 {[%emt 0:00:00]} Qf5+ {[%emt 0:00:28]} 45. Qxf5 gxf5 {[%emt 0:00:02]} 46. b4 {[%emt 0:00:00]} f4 {[%emt 0:00:35]} 47. Kc2 {[%emt 0:00:00]} Kg7 {[%emt 0:04:44]} 48. Kd2 {[%emt 0:00:00]} Kf6 {[%emt 0:03:14]} 49. a4 {[%emt 0:02:12]} Rc8 {[%emt 0:00:46]} 50. Ke2 {[%emt 0:03:11]} Ke5 {[%emt 0:00:38]} 51. Kf3 {[%emt 0:00:53]} Kd5 {[%emt 0:02:14]} 52. Kxf4 Rb8 53. Rd1+ {[%emt 0:02:33]} Kc4 {[%emt 0:00:34]} 54. Rc1+ {[%emt 0:01:05]} Kd5 {[%emt 0:00:27]} 55. Rd1+ {[%emt 0:00:04]} Kc4 {[%emt 0:00:01]} 56. c6 {[%emt 0:00:52]} Rc8 {[%emt 0:00:11]} 57. Ke5 {[%emt 0:01:13]} Kxb4 {[%emt 0:00:11]} 58. Rc1 {[%emt 0:00:50]} Kxa4 59. Kd5 {[%emt 0:00:15]} Kb3 {[%emt 0:01:31]} 60. Ra1 {[%emt 0:00:14]} Ra8 {[%emt 0:00:05]} 61. c7 {[%emt 0:00:35]} Kc2 {[%emt 0:01:56]} 62. Rxa6 {[%emt 0:00:15]} Rc8 {[%emt 0:00:06]} 63. Ke4 {normal} 1-0